fUSD/lending_fUSD_20250828
["ID","MTS","AMOUNT","RATE_DAILY","PERIOD"]
[381769030,1756339209839,-197.38610072,0.00015,2]
[381769034,1756339443856,-169.02,0.00013699,2]
[381769035,1756339463380,-14.25,0.00013699,2]
[381769036,1756339463409,-46.74734893,0.00015,2]
[381769037,1756339463438,-48.36530214,0.00015068,2]
[381769038,1756339463498,-201.63469786,0.00015068,2]
[381769039,1756339471471,-6.03225005,0.00015068,2]
[381769040,1756339471502,-244.96774995,0.00015068,2]
[381769041,1756339479998,-249.60693028,0.00015068,2]
[381769042,1756339487998,-249.60693028,0.00015068,2]
[381769043,1756339488021,-2000.78613944,0.00015068,2]
[381769044,1756339496520,-198.5,0.00015068,2]
[381769051,1756339738026,-48.5,0.00015068,2]
[381769052,1756339738050,-53.0,0.00015068,2]
[381769053,1756339761489,-150.0,0.0001507,2]
[381769054,1756339770527,150.0,0.00026991,120]
[381769055,1756339830793,150.0,0.00026861,120]
[381769067,1756339831613,-10.16,0.0001507,2]
[381769069,1756339831625,-500.0,0.000161,2]
[381769071,1756339831635,-150.0,0.000162,2]
[381769073,1756339831644,-150.0,0.000162,2]
[381769076,1756339831656,-150.0,0.000162,2]
[381769077,1756339831665,-150.0,0.000162,2]
[381769078,1756339831674,-150.0,0.000162,2]
[381769079,1756339831684,-150.0,0.000162,2]
[381769080,1756339831694,-273.88713086,0.00016221,2]
[381769081,1756339831705,-160.0,0.000163,7]
[381769082,1756339831714,-1200.0,0.0001632,2]
[381769083,1756339831724,-300.0,0.0001632,2]
[381769084,1756339831734,-600.19,0.00016321,2]
[381769085,1756339831751,-999.66,0.00016321,2]
[381769086,1756339831761,-150.44,0.00016454,2]
[381769087,1756339831773,-186.9,0.00016458,2]
[381769088,1756339831787,-666.0,0.0001649,3]
[381769089,1756339831798,-1000.0,0.00016535,2]
[381769090,1756339831808,-250.0,0.00016575,2]
[381769091,1756339831818,-469.3,0.00016767,2]
[381769092,1756339831827,-810.97,0.00016767,2]
[381769093,1756339831837,-1130.2928691,0.0001688,2]
[381769094,1756339831929,-363.4540862,0.0001688,2]
[381769095,1756339831942,-940.99693494,0.0001688,2]
[381769096,1756339831952,-257.91778498,0.0001688,2]
[381769097,1756339831962,-941.71986542,0.00016935,2]
[381769098,1756339831971,-167.32,0.00016954,2]
[381769099,1756339831981,-150.0,0.00016995,2]
[381769100,1756339831991,-2698.5,0.00017056,2]
[381769102,1756339832001,-150.0,0.00017056,2]
[381769104,1756339832010,-168.0,0.00017182,2]
[381769106,1756339832020,-526.0,0.00017188,2]
[381769108,1756339832029,-526.0,0.00017195,2]
[381769110,1756339832038,-500.0,0.00017233,2]
[381769112,1756339832048,-535.2017936,0.00017296,2]
[381769114,1756339832057,-2000.0,0.000173,2]
[381769116,1756339832067,-150.0,0.00017308,2]
[381769118,1756339832076,-526.0,0.00017308,2]
[381769120,1756339832086,-322.6107,0.00017431,2]
[381769122,1756339832095,-160.0,0.00017431,2]
[381769123,1756339832104,-500.0,0.00017431,2]
[381769124,1756339832113,-695.39793187,0.00017431,2]
[381769125,1756339832122,-200.0,0.00017431,2]
[381769126,1756339832132,-151.0,0.00017431,2]
[381769127,1756339832140,-926.0,0.00017441,2]
[381769129,1756339832150,-835.42466919,0.00017441,2]
[381769136,1756339832204,-420.57533081,0.00017441,2]
[381769138,1756339832214,-566.0,0.00017441,2]
[381769140,1756339832223,-1575.0,0.00017441,2]
[381769141,1756339832232,-1298.0,0.00017441,2]
[381769142,1756339832242,-599.0,0.00017441,2]
[381769143,1756339832251,-554.46148577,0.00017445,2]
[381769144,1756339832260,-3491.85201543,0.00017445,2]
[381769145,1756339832271,-183.05264219,0.00017445,2]
[381769146,1756339832281,-169.02,0.00017446,2]
[381769147,1756339832290,-225.70350278,0.00017446,2]
[381769148,1756339832299,-1000.0,0.00017446,2]
[381769149,1756339832309,-5000.0,0.00017446,2]
[381769150,1756339832318,-168.0,0.00017446,2]
[381769151,1756339832327,-8566.00464868,0.00017447,2]
[381769152,1756339832337,-1000.0,0.00017447,2]
[381769153,1756339832348,-1275.7,0.00017448,2]
[381769154,1756339832359,-895.0,0.00017448,2]
[381769155,1756339832369,-6147.0,0.00017448,2]
[381769156,1756339832379,-4156.0,0.00017448,2]
[381769157,1756339832388,-718.0,0.00017448,2]
[381769158,1756339832398,-173.83,0.00017452,2]
[381769159,1756339832408,-408.65,0.00017452,2]
[381769160,1756339832417,-307.03,0.00017452,2]
[381769161,1756339832426,-451.62,0.00017452,2]
[381769162,1756339832436,-264.21,0.00017452,2]
[381769163,1756339832445,-173.83,0.00017452,2]
[381769164,1756339832454,-881.32212001,0.00017457,2]
[381769165,1756339832464,-168.0,0.00017476,2]
[381769166,1756339832474,-3491.8520154,0.00017496,2]
[381769167,1756339832484,-463.73242839,0.000175,2]
[381769168,1756339832494,-1300.0,0.000175,6]
[381769169,1756339832503,-8566.00464866,0.00017506,2]
[381769170,1756339832513,-500.0000002,0.00017522,2]
[381769171,1756339832524,-413.06,0.0001753,2]
[381769172,1756339832533,-400.0,0.0001753,2]
[381769173,1756339832543,-400.0,0.0001753,2]
[381769174,1756339832552,-400.0,0.0001753,2]
[381769175,1756339832561,-400.0,0.0001753,2]
[381769176,1756339832570,-400.0,0.0001753,2]
[381769177,1756339832579,-400.0,0.0001753,2]
[381769178,1756339832589,-259.67,0.0001753,2]
[381769179,1756339832600,-400.0,0.0001753,2]
[381769180,1756339832612,-400.0,0.0001753,2]
[381769181,1756339832623,-400.0,0.0001753,2]
[381769182,1756339832631,-400.0,0.0001753,2]
[381769183,1756339832641,-400.0,0.0001753,2]
[381769184,1756339832652,-400.0,0.0001753,2]
[381769185,1756339832662,-400.0,0.0001753,2]
[381769186,1756339832671,-400.0,0.0001753,2]
[381769187,1756339832680,-400.0,0.0001753,2]
[381769188,1756339832689,-400.0,0.0001753,2]
[381769189,1756339832699,-400.0,0.0001753,2]
[381769190,1756339832708,-400.0,0.0001753,2]
[381769191,1756339832717,-400.0,0.0001753,2]
[381769192,1756339832727,-400.0,0.0001753,2]
[381769193,1756339832736,-400.0,0.0001753,2]
[381769194,1756339832746,-400.0,0.0001753,2]
[381769195,1756339832756,-400.0,0.0001753,2]
[381769196,1756339832765,-400.0,0.0001753,2]
[381769197,1756339832774,-400.0,0.0001753,2]
[381769198,1756339832784,-400.0,0.0001753,2]
[381769199,1756339832793,-542.93,0.0001753,2]
[381769200,1756339832803,-405.32,0.0001753,2]
[381769201,1756339832812,-472.2,0.0001753,2]
[381769202,1756339832821,-400.0,0.0001753,2]
[381769203,1756339832830,-400.0,0.0001753,2]
[381769204,1756339832839,-400.0,0.0001753,2]
[381769205,1756339832851,-400.0,0.0001753,2]
[381769206,1756339832865,-400.0,0.0001753,2]
[381769207,1756339832875,-400.0,0.0001753,2]
[381769208,1756339832884,-400.0,0.0001753,2]
[381769209,1756339832895,-889.48,0.0001753,2]
[381769210,1756339832906,-523.1,0.0001753,2]
[381769211,1756339832915,-400.0,0.0001753,2]
[381769212,1756339832927,-400.0,0.0001753,2]
[381769213,1756339832937,-400.0,0.0001753,2]
[381769214,1756339832948,-547.54,0.0001753,2]
[381769215,1756339832958,-400.0,0.0001753,2]
[381769216,1756339832969,-400.0,0.0001753,2]
[381769217,1756339832980,-400.0,0.0001753,2]
[381769218,1756339832989,-400.0,0.0001753,2]
[381769219,1756339832999,-428.3,0.0001753,2]
[381769220,1756339833008,-400.0,0.0001753,2]
[381769221,1756339833019,-488.49,0.0001753,2]
[381769222,1756339833028,-400.0,0.0001753,2]
[381769223,1756339833037,-400.0,0.0001753,2]
[381769224,1756339833047,-400.0,0.0001753,2]
[381769225,1756339833056,-400.0,0.0001753,2]
[381769226,1756339833066,-400.0,0.0001753,2]
[381769227,1756339833075,-400.0,0.0001753,2]
[381769228,1756339833084,-400.0,0.0001753,2]
[381769229,1756339833094,-400.0,0.0001753,2]
[381769230,1756339833103,-400.0,0.0001753,2]
[381769231,1756339833113,-400.0,0.0001753,2]
[381769232,1756339833122,-400.0,0.0001753,2]
[381769233,1756339833131,-400.0,0.0001753,2]
[381769234,1756339833140,-41.8725777,0.0001753,2]
[381769235,1756339833154,-358.1274223,0.0001753,2]
[381769236,1756339833163,-400.0,0.0001753,2]
[381769237,1756339833173,-400.0,0.0001753,2]
[381769238,1756339833183,-400.0,0.0001753,2]
[381769239,1756339833192,-319.4966431,0.0001753,2]
[381769240,1756339833202,-400.0,0.0001753,2]
[381769241,1756339833211,-400.0,0.0001753,2]
[381769242,1756339833221,-400.0,0.0001753,2]
[381769243,1756339833230,-400.0,0.0001753,2]
[381769244,1756339833239,-400.0,0.0001753,2]
[381769245,1756339833248,-400.0,0.0001753,2]
[381769246,1756339833258,-400.0,0.0001753,2]
[381769247,1756339833268,-2890.02,0.00017531,2]
[381769248,1756339833277,-3497.4779183,0.00017533,2]
[381769249,1756339833286,-409.74954487,0.00017536,2]
[381769250,1756339833296,-400.0,0.00017544,2]
[381769251,1756339833306,-400.0,0.00017544,2]
[381769252,1756339833316,-392.23879148,0.00017544,2]
[381769253,1756339833326,-400.0,0.00017544,2]
[381769254,1756339833335,-400.0,0.00017544,2]
[381769255,1756339833344,-400.0,0.00017544,2]
[381769256,1756339833354,-400.0,0.00017544,2]
[381769257,1756339833363,-400.0,0.00017544,2]
[381769258,1756339833372,-400.0,0.00017544,2]
[381769259,1756339833382,-400.0,0.00017544,2]
[381769260,1756339833391,-539.48,0.00017544,2]
[381769261,1756339833400,-400.0,0.00017544,2]
[381769262,1756339833410,-400.0,0.00017544,2]
[381769263,1756339833419,-400.0,0.00017544,2]
[381769264,1756339833429,-935.45,0.00017544,2]
[381769265,1756339833439,-400.0,0.00017544,2]
[381769266,1756339833448,-400.0,0.00017544,2]
[381769267,1756339833458,-400.0,0.00017544,2]
[381769268,1756339833468,-400.0,0.00017544,2]
[381769269,1756339833477,-400.0,0.00017544,2]
[381769270,1756339833487,-400.0,0.00017544,2]
[381769271,1756339833496,-367.84026921,0.00017544,2]
[381769273,1756339837632,-4520.53183124,0.00017448,2]
[381769274,1756339837688,-1114.6,0.00017448,2]
[381769275,1756339837701,-313.154501,0.00017448,2]
[381769276,1756339837745,-1069.28031338,0.00017448,2]
[381769281,1756339838268,-14089.43335438,0.00017448,2]
[381769282,1756339838278,-400.0,0.0001753,2]
[381769283,1756339838287,-32.15973079,0.00017544,2]
[381769284,1756339838296,-400.0,0.00017544,2]
[381769285,1756339838305,-400.0,0.00017544,2]
[381769286,1756339838315,-400.0,0.00017544,2]
[381769287,1756339838324,-400.0,0.00017544,2]
[381769288,1756339838333,-400.0,0.00017544,2]
[381769289,1756339838344,-400.0,0.00017544,2]
[381769290,1756339838353,-400.0,0.00017544,2]
[381769291,1756339838363,-400.0,0.00017544,2]
[381769292,1756339838373,-400.0,0.00017544,2]
[381769293,1756339838383,-400.0,0.00017544,2]
[381769294,1756339838392,-400.0,0.00017544,2]
[381769295,1756339838401,-400.0,0.00017544,2]
[381769296,1756339838410,-400.0,0.00017544,2]
[381769297,1756339838420,-725.83,0.00017544,2]
[381769298,1756339838431,-400.0,0.00017544,2]
[381769299,1756339838440,-356.95073227,0.00017544,2]
[381769300,1756339838449,-441.16,0.00017544,2]
[381769301,1756339838458,-400.0,0.00017544,2]
[381769302,1756339838467,-400.0,0.00017544,2]
[381769303,1756339838477,-400.0,0.00017544,2]
[381769304,1756339838486,-400.0,0.00017544,2]
[381769305,1756339838496,-448.49,0.00017544,2]
[381769306,1756339838505,-443.57,0.00017544,2]
[381769307,1756339838514,-400.0,0.00017544,2]
[381769308,1756339838524,-400.0,0.00017544,2]
[381769309,1756339838534,-2363.54,0.00017544,2]
[381769310,1756339838544,-400.0,0.00017544,2]
[381769311,1756339838553,-400.0,0.00017544,2]
[381769312,1756339838563,-400.0,0.00017544,2]
[381769313,1756339838573,-400.0,0.00017544,2]
[381769314,1756339838582,-400.0,0.00017544,2]
[381769315,1756339838591,-400.0,0.00017544,2]
[381769316,1756339838600,-400.0,0.00017544,2]
[381769317,1756339838610,-420.16,0.00017544,2]
[381769318,1756339838619,-400.0,0.00017544,2]
[381769319,1756339838628,-400.0,0.00017544,2]
[381769320,1756339838637,-515.91,0.00017544,2]
[381769321,1756339838646,-400.0,0.00017544,2]
[381769322,1756339838655,-400.0,0.00017544,2]
[381769323,1756339838665,-400.0,0.00017545,2]
[381769324,1756339838673,-400.0,0.00017545,2]
[381769325,1756339838682,-353.70199524,0.00017545,2]
[381769326,1756339838692,-400.0,0.00017545,2]
[381769327,1756339838701,-470.27,0.00017545,2]
[381769328,1756339838710,-400.0,0.00017545,2]
[381769329,1756339838719,-400.0,0.00017545,2]
[381769330,1756339838728,-400.0,0.00017545,2]
[381769331,1756339838738,-400.0,0.00017545,2]
[381769332,1756339838747,-400.0,0.00017545,2]
[381769333,1756339838756,-400.0,0.00017545,2]
[381769334,1756339838766,-400.0,0.00017545,2]
[381769335,1756339838775,-400.0,0.00017545,2]
[381769336,1756339838784,-492.14,0.00017545,2]
[381769337,1756339838793,-522.32,0.00017545,2]
[381769338,1756339838803,-400.0,0.00017545,2]
[381769339,1756339838812,-400.0,0.00017545,2]
[381769340,1756339838820,-400.0,0.00017545,2]
[381769341,1756339838830,-400.0,0.00017545,2]
[381769342,1756339838839,-400.0,0.00017545,2]
[381769343,1756339838848,-400.0,0.00017545,2]
[381769344,1756339838860,-400.0,0.00017545,2]
[381769345,1756339838869,-400.0,0.00017545,2]
[381769346,1756339838878,-400.0,0.00017545,2]
[381769347,1756339838888,-409.57,0.00017545,2]
[381769348,1756339838896,-400.0,0.00017545,2]
[381769349,1756339838909,-526.8,0.00017545,2]
[381769350,1756339838920,-400.0,0.00017545,2]
[381769351,1756339838931,-210.82879893,0.00017545,2]
[381769352,1756339838941,-400.0,0.00017545,2]
[381769353,1756339838951,-400.0,0.00017545,2]
[381769354,1756339838961,-689.65,0.00017545,2]
[381769355,1756339838970,-400.0,0.00017545,2]
[381769356,1756339838980,-400.0,0.00017545,2]
[381769357,1756339838990,-400.0,0.00017545,2]
[381769358,1756339838999,-404.74,0.00017545,2]
[381769359,1756339839009,-400.0,0.00017545,2]
[381769360,1756339839019,-400.0,0.00017545,2]
[381769361,1756339839028,-411.01,0.00017545,2]
[381769362,1756339839037,-400.0,0.00017545,2]
[381769363,1756339839047,-400.0,0.00017545,2]
[381769364,1756339839056,-400.0,0.00017545,2]
[381769365,1756339839066,-400.0,0.00017545,2]
[381769366,1756339839076,-400.0,0.00017545,2]
[381769367,1756339839085,-400.0,0.00017545,2]
[381769368,1756339839095,-274.08,0.00017545,2]
[381769369,1756339839104,-400.0,0.00017545,2]
[381769370,1756339839113,-400.0,0.00017545,2]
[381769371,1756339839122,-400.0,0.00017545,2]
[381769372,1756339839132,-300.0,0.00017545,2]
[381769373,1756339839141,-400.0,0.00017545,2]
[381769374,1756339839151,-400.0,0.00017545,2]
[381769375,1756339839161,-400.0,0.00017545,2]
[381769376,1756339839170,-400.0,0.00017545,2]
[381769377,1756339839179,-400.0,0.00017545,2]
[381769378,1756339839188,-400.0,0.00017545,2]
[381769379,1756339839201,-400.0,0.00017545,2]
[381769380,1756339839210,-400.0,0.00017545,2]
[381769381,1756339839219,-409.62218721,0.00017545,2]
[381769382,1756339839230,-400.0,0.00017545,2]
[381769383,1756339839239,-400.0,0.00017545,2]
[381769384,1756339839249,-400.0,0.00017545,2]
[381769385,1756339839259,-408.41114672,0.00017545,2]
[381769386,1756339839268,-266.03,0.00017545,2]
[381769387,1756339839278,-400.0,0.00017545,2]
[381769388,1756339839288,-400.0,0.00017545,2]
[381769389,1756339839297,-400.0,0.00017545,2]
[381769390,1756339839307,-248.84004259,0.00017545,2]
[381769391,1756339839316,-400.0,0.00017545,2]
[381769392,1756339839326,-400.0,0.00017545,2]
[381769393,1756339839336,-400.0,0.00017545,2]
[381769394,1756339839347,-412.35,0.00017545,2]
[381769395,1756339839357,-400.0,0.00017545,2]
[381769396,1756339839367,-417.98,0.00017545,2]
[381769397,1756339839376,-285.51543296,0.00017545,2]
[381769398,1756339839386,-400.0,0.00017545,2]
[381769399,1756339839396,-400.0,0.00017545,2]
[381769400,1756339839405,-400.0,0.00017545,2]
[381769401,1756339839415,-400.0,0.00017545,2]
[381769402,1756339839424,-400.0,0.00017545,2]
[381769403,1756339839434,-400.0,0.00017545,2]
[381769404,1756339839444,-400.0,0.00017545,2]
[381769405,1756339839454,-400.0,0.00017545,2]
[381769406,1756339839463,-400.0,0.00017545,2]
[381769407,1756339839474,-171.8,0.00017545,2]
[381769408,1756339839483,-400.0,0.00017545,2]
[381769409,1756339839492,-400.0,0.00017545,2]
[381769410,1756339839502,-400.0,0.00017545,2]
[381769411,1756339839511,-400.0,0.00017545,2]
[381769412,1756339839521,-327.310556,0.00017545,2]
[381769413,1756339839530,-185.1736904,0.00017545,2]
[381769414,1756339839539,-400.0,0.00017545,2]
[381769415,1756339839549,-400.0,0.00017545,2]
[381769416,1756339839559,-491.539566,0.00017545,2]
[381769417,1756339839569,-400.0,0.00017545,2]
[381769418,1756339839579,-400.0,0.00017545,2]
[381769419,1756339839589,-400.0,0.00017545,2]
[381769420,1756339839599,-400.0,0.00017545,2]
[381769421,1756339839608,-400.0,0.00017545,2]
[381769422,1756339839618,-207.262334,0.00017545,2]
[381769423,1756339839628,-400.0,0.00017545,2]
[381769424,1756339839638,-191.29239983,0.00017545,2]
[381769425,1756339839647,-400.0,0.00017545,2]
[381769426,1756339839657,-400.0,0.00017545,2]
[381769427,1756339839667,-400.0,0.00017545,2]
[381769428,1756339839676,-400.0,0.00017545,2]
[381769429,1756339839686,-400.0,0.00017545,2]
[381769430,1756339839696,-472.53342785,0.00017545,2]
[381769431,1756339839705,-400.0,0.00017545,2]
[381769432,1756339839714,-400.0,0.00017545,2]
[381769433,1756339839724,-400.0,0.00017545,2]
[381769434,1756339839734,-400.0,0.00017545,2]
[381769435,1756339839744,-400.0,0.00017545,2]
[381769436,1756339839753,-400.0,0.00017545,2]
[381769437,1756339839763,-400.0,0.00017545,2]
[381769438,1756339839773,-400.0,0.00017545,2]
[381769439,1756339839782,-400.0,0.00017545,2]
[381769440,1756339839791,-400.0,0.00017545,2]
[381769441,1756339839800,-400.0,0.00017545,2]
[381769442,1756339839810,-400.0,0.00017545,2]
[381769443,1756339839820,-400.0,0.00017545,2]
[381769444,1756339839829,-449.47,0.00017545,2]
[381769445,1756339839838,-400.0,0.00017545,2]
[381769446,1756339839847,-400.0,0.00017545,2]
[381769447,1756339839860,-400.0,0.00017545,2]
[381769448,1756339839870,-400.0,0.00017545,2]
[381769449,1756339839880,-404.0,0.00017545,2]
[381769450,1756339839891,-271.88,0.00017545,2]
[381769451,1756339839901,-400.0,0.00017545,2]
[381769452,1756339839913,-400.0,0.00017545,2]
[381769453,1756339839925,-400.0,0.00017545,2]
[381769454,1756339839935,-400.0,0.00017545,2]
[381769455,1756339839944,-471.39,0.00017545,2]
[381769456,1756339839954,-400.0,0.00017545,2]
[381769457,1756339839965,-449.1063841,0.00017545,2]
[381769458,1756339839976,-400.0,0.00017545,2]
[381769459,1756339839987,-400.0,0.00017545,2]
[381769460,1756339839997,-400.0,0.00017545,2]
[381769461,1756339840008,-400.0,0.00017545,2]
[381769462,1756339840017,-400.0,0.00017545,2]
[381769463,1756339840026,-305.02865048,0.00017545,2]
[381769464,1756339840036,-442.51,0.00017545,2]
[381769465,1756339840049,-168.33139638,0.00017545,2]
[381769466,1756339840061,-400.0,0.00017545,2]
[381769467,1756339840071,-400.0,0.00017545,2]
[381769468,1756339840081,-400.0,0.00017545,2]
[381769469,1756339840091,-400.0,0.00017545,2]
[381769470,1756339840101,-400.0,0.00017545,2]
[381769471,1756339840111,-400.0,0.00017545,2]
[381769472,1756339840120,-720.95,0.00017545,2]
[381769473,1756339840129,-400.0,0.00017545,2]
[381769474,1756339840140,-400.0,0.00017545,2]
[381769475,1756339840150,-400.0,0.00017545,2]
[381769476,1756339840160,-400.0,0.00017545,2]
[381769477,1756339840170,-401.18,0.00017545,2]
[381769478,1756339840180,-400.0,0.00017545,2]
[381769479,1756339840189,-400.0,0.00017545,2]
[381769480,1756339840199,-400.0,0.00017545,2]
[381769481,1756339840209,-400.0,0.00017545,2]
[381769482,1756339840219,-400.0,0.00017545,2]
[381769483,1756339840228,-400.0,0.00017545,2]
[381769484,1756339840239,-400.0,0.00017545,2]
[381769485,1756339840251,-400.0,0.00017545,2]
[381769486,1756339840261,-400.0,0.00017545,2]
[381769487,1756339840271,-400.0,0.00017545,2]
[381769488,1756339840281,-400.0,0.00017545,2]
[381769489,1756339840290,-400.0,0.00017545,2]
[381769490,1756339840300,-400.0,0.00017545,2]
[381769491,1756339840310,-400.0,0.00017545,2]
[381769492,1756339840319,-400.0,0.00017545,2]
[381769493,1756339840329,-400.0,0.00017545,2]
[381769494,1756339840338,-400.0,0.00017545,2]
[381769495,1756339840348,-400.0,0.00017545,2]
[381769496,1756339840358,-400.0,0.00017545,2]
[381769497,1756339840367,-400.0,0.00017545,2]
[381769498,1756339840377,-400.0,0.00017545,2]
[381769499,1756339840386,-738.62,0.00017545,2]
[381769500,1756339840396,-400.0,0.00017545,2]
[381769501,1756339840407,-400.0,0.00017545,2]
[381769502,1756339840422,-772.14,0.00017545,2]
[381769503,1756339840442,-500.0,0.00017545,2]
[381769504,1756339840457,-400.0,0.00017545,2]
[381769505,1756339840467,-400.0,0.00017545,2]
[381769506,1756339840477,-400.0,0.00017545,2]
[381769507,1756339840488,-400.0,0.00017545,2]
[381769508,1756339840498,-421.36,0.00017545,2]
[381769509,1756339840509,-400.0,0.00017545,2]
[381769510,1756339840519,-400.0,0.00017545,2]
[381769511,1756339840529,-471.41,0.00017545,2]
[381769512,1756339840540,-400.0,0.00017545,2]
[381769513,1756339840550,-400.0,0.00017545,2]
[381769514,1756339840560,-406.86,0.00017545,2]
[381769515,1756339840570,-400.0,0.00017545,2]
[381769516,1756339840579,-400.0,0.00017545,2]
[381769517,1756339840588,-400.0,0.00017545,2]
[381769518,1756339840597,-467.54,0.00017545,2]
[381769519,1756339840606,-400.0,0.00017545,2]
[381769520,1756339840615,-400.0,0.00017545,2]
[381769521,1756339840624,-516.19,0.00017545,2]
[381769522,1756339840634,-182.63,0.00017545,2]
[381769523,1756339840644,-400.0,0.00017545,2]
[381769524,1756339840653,-400.0,0.00017545,2]
[381769525,1756339840662,-400.0,0.00017545,2]
[381769526,1756339840671,-400.0,0.00017545,2]
[381769527,1756339840681,-400.0,0.00017545,2]
[381769528,1756339840690,-400.0,0.00017545,2]
[381769529,1756339840699,-232.81058739,0.00017545,2]
[381769530,1756339840712,-400.0,0.00017545,2]
[381769531,1756339840722,-400.0,0.00017545,2]
[381769532,1756339840731,-400.0,0.00017545,2]
[381769533,1756339840740,-400.0,0.00017545,2]
[381769534,1756339840750,-400.0,0.00017545,2]
[381769535,1756339840760,-1118.19,0.00017545,2]
[381769536,1756339840770,-400.0,0.00017545,2]
[381769537,1756339840779,-243.47,0.00017545,2]
[381769538,1756339840788,-400.0,0.00017545,2]
[381769539,1756339840798,-363.04067092,0.00017545,2]
[381769540,1756339840807,-400.0,0.00017545,2]
[381769541,1756339840816,-400.0,0.00017545,2]
[381769542,1756339840826,-400.0,0.00017545,2]
[381769543,1756339840842,-400.0,0.00017545,2]
[381769544,1756339840853,-1741.57,0.00017545,2]
[381769546,1756339840868,-400.0,0.00017545,2]
[381769548,1756339840880,-400.0,0.00017545,2]
[381769550,1756339840892,-400.0,0.00017545,2]
[381769551,1756339840904,-400.0,0.00017545,2]
[381769552,1756339840914,-400.0,0.00017545,2]
[381769553,1756339840924,-400.0,0.00017545,2]
[381769554,1756339840936,-400.0,0.00017545,2]
[381769555,1756339840947,-400.0,0.00017545,2]
[381769556,1756339840958,-400.0,0.00017545,2]
[381769557,1756339840970,-400.0,0.00017545,2]
[381769558,1756339840980,-400.0,0.00017545,2]
[381769559,1756339840992,-400.0,0.00017545,2]
[381769560,1756339841003,-569.99,0.00017545,2]
[381769561,1756339841015,-447.35,0.00017545,2]
[381769562,1756339841028,-594.08,0.00017545,2]
[381769563,1756339841040,-400.0,0.00017545,2]
[381769564,1756339841052,-694.3,0.00017545,2]
[381769565,1756339841063,-400.0,0.00017545,2]
[381769566,1756339841074,-400.0,0.00017545,2]
[381769567,1756339841084,-400.0,0.00017545,2]
[381769568,1756339841094,-400.0,0.00017546,2]
[381769569,1756339841104,-400.0,0.00017546,2]
[381769570,1756339841115,-400.0,0.00017546,2]
[381769571,1756339841127,-400.0,0.00017546,2]
[381769572,1756339841139,-400.0,0.00017546,2]
[381769573,1756339841150,-400.0,0.00017546,2]
[381769574,1756339841161,-400.0,0.00017546,2]
[381769575,1756339841173,-400.0,0.00017546,2]
[381769576,1756339841185,-400.83134659,0.00017546,2]
[381769577,1756339841196,-400.0,0.00017546,2]
[381769578,1756339841209,-492.76641469,0.00017546,2]
[381769579,1756339841221,-400.0,0.00017546,2]
[381769580,1756339841233,-400.0,0.00017546,2]
[381769581,1756339841245,-400.0,0.00017546,2]
[381769582,1756339841256,-400.0,0.00017546,2]